[Event "11th LCC Rapid 2019"]
[Site "London"]
[Date "2019.12.07"]
[Round "3.26"]
[White "Tombolis, Christopher"]
[Black "Onslow, Teddy"]
[Result "1/2-1/2"]
[WhiteElo "1875"]
[BlackElo "1746"]
[PlyCount "103"]
[EventDate "2019.12.08"]
[EventType "swiss"]
[EventCountry "ENG"]
[TimeControl "15+10"]
[WhiteClock "0:01:21"]
[BlackClock "0:01:01"]

1. d4 {[%emt 0:00:00]} d5 {[%emt 0:00:00]} 2. c4 {[%emt 0:00:00]} e6 {[%emt 0:00:00]} 3. Nc3 {[%emt 0:00:00]} Nf6 {[%emt 0:00:00]} 4. Nf3 {[%emt 0:00:00]} c6 {[%emt 0:00:00]} 5. e3 {[%emt 0:00:00]} Bd6 {[%emt 0:00:00]} 6. Bd2 {[%emt 0:00:00]} Nbd7 {[%emt 0:00:00]} 7. Rc1 {[%emt 0:00:00]} O-O {[%emt 0:00:00]} 8. Bd3 {[%emt 0:00:00]} dxc4 {[%emt 0:00:00]} 9. Bxc4 {[%emt 0:00:00]} b5 {[%emt 0:00:00]} 10. Bd3 {[%emt 0:00:00]} Bb7 {[%emt 0:00:00]} 11. Ne4 {[%emt 0:00:00]} Nxe4 {[%emt 0:00:00]} 12. Bxe4 {[%emt 0:00:00]} Rc8 {[%emt 0:00:00]} 13. O-O {[%emt 0:00:00]} Nf6 {[%emt 0:00:00]} 14. Bb1 {[%emt 0:00:00]} a6 {[%emt 0:00:00]} 15. b4 {[%emt 0:00:00]} Qe7 {[%emt 0:00:00]} 16. a3 {[%emt 0:00:00]} e5 {[%emt 0:00:00]} 17. dxe5 {[%emt 0:00:00]} Bxe5 {[%emt 0:00:00]} 18. Nxe5 {[%emt 0:00:00]} Qxe5 {[%emt 0:00:00]} 19. Bc3 {[%emt 0:00:00]} Qg5 {[%emt 0:00:00]} 20. f4 {[%emt 0:00:00]} Qh6 {[%emt 0:00:00]} 21. Bxf6 {[%emt 0:00:00]} Qxf6 {[%emt 0:00:00]} 22. Qd3 {[%emt 0:00:00]} g6 {[%emt 0:00:00]} 23. f5 {[%emt 0:00:00]} Qg5 {[%emt 0:00:00]} 24. fxg6 {[%emt 0:00:00]} hxg6 {[%emt 0:00:00]} 25. Rc5 {[%emt 0:00:00]} Qe7 {[%emt 0:00:00]} 26. Ba2 {[%emt 0:00:00]} Kg7 {[%emt 0:00:00]} 27. Qc3+ {[%emt 0:00:00]} f6 {[%emt 0:00:00]} 28. h4 {[%emt 0:00:00]} Rfe8 {[%emt 0:00:00]} 29. e4 {[%emt 0:00:00]} Rcd8 {[%emt 0:00:00]} 30. h5 {[%emt 0:00:00]} Qd6 {[%emt 0:00:00]} 31. h6+ {[%emt 0:00:00]} Kxh6 {[%emt 0:00:00]} 32. Rxf6 {[%emt 0:00:00]} Qd1+ {[%emt 0:00:05]} 33. Kh2 {[%emt 0:00:00]} Rd3 {[%emt 0:00:09]} 34. Qc1+ {[%emt 0:03:13]} Qxc1 {[%emt 0:00:14]} 35. Rxc1 {[%emt 0:00:01]} Rxe4 {[%emt 0:00:47]} 36. Bb1 {[%emt 0:00:43]} Rh4+ {[%emt 0:00:01]} 37. Kg1 {[%emt 0:00:01]} Rg3 {[%emt 0:00:03]} 38. Rf7 {[%emt 0:00:32]} Bc8 {[%emt 0:00:50]} 39. Rxc6 {[%emt 0:01:03]} Bh3 {[%emt 0:00:12]} 40. Rf2 {[%emt 0:00:13]} Rhg4 {[%emt 0:01:23]} 41. Kh2 {[%emt 0:01:02]} Bxg2 {[%emt 0:00:54]} 42. Rxg6+ {[%emt 0:00:10]} Rxg6 {[%emt 0:00:27]} 43. Bxg6 {[%emt 0:00:03]} Rxg6 {[%emt 0:00:07]} 44. Rxg2 {[%emt 0:00:01]} Rxg2+ {[%emt 0:00:39]} 45. Kxg2 {[%emt 0:00:01]} Kg6 {[%emt 0:00:01]} 46. Kf2 {[%emt 0:00:28]} Kf6 {[%emt 0:00:03]} 47. Ke2 {[%emt 0:00:02]} Ke6 {[%emt 0:00:01]} 48. Kd2 {[%emt 0:00:07]} Kd6 {[%emt 0:00:13]} 49. Ke2 {[%emt 0:00:09]} Ke6 {[%emt 0:00:38]} 50. Kd2 {[%emt 0:00:03]} Ke5 {[%emt 0:00:36]} 51. Ke3 {[%emt 0:00:01]} Kd5 {[%emt 0:00:01]} 52. Kd3 {[%emt 0:00:01]} 1/2-1/2

[Event "11th LCC Rapid 2019"]
[Site "London"]
[Date "2019.12.07"]
[Round "3.27"]
[White "Zheng, William"]
[Black "Chakanyuka, Charles"]
[Result "1/2-1/2"]
[WhiteElo "1672"]
[BlackElo "1995"]
[PlyCount "173"]
[EventDate "2019.12.08"]
[EventType "swiss"]
[EventCountry "ENG"]
[TimeControl "15+10"]
[WhiteClock "0:01:13"]
[BlackClock "0:05:01"]

1. e4 {[%emt 0:00:00]} d6 {[%emt 0:00:00]} 2. d4 {[%emt 0:00:00]} Nf6 {[%emt 0:00:00]} 3. Nc3 {[%emt 0:00:00]} c6 {[%emt 0:00:00]} 4. Nf3 {[%emt 0:00:00]} Qa5 {[%emt 0:00:00]} 5. Bd2 {[%emt 0:00:00]} e5 {[%emt 0:00:00]} 6. dxe5 {[%emt 0:00:00]} dxe5 {[%emt 0:00:00]} 7. Bc4 {[%emt 0:00:00]} Be7 {[%emt 0:00:00]} 8. O-O {[%emt 0:00:00]} Qc7 {[%emt 0:00:00]} 9. h3 {[%emt 0:00:00]} O-O {[%emt 0:00:00]} 10. Qe2 {[%emt 0:00:00]} b5 {[%emt 0:00:00]} 11. Bb3 {[%emt 0:00:00]} a5 {[%emt 0:00:00]} 12. a4 {[%emt 0:00:00]} b4 {[%emt 0:00:00]} 13. Nd1 {[%emt 0:00:00]} Nbd7 {[%emt 0:00:00]} 14. Ne3 {[%emt 0:00:00]} Nc5 {[%emt 0:00:00]} 15. Nc4 {[%emt 0:00:00]} Ba6 {[%emt 0:00:00]} 16. Bg5 {[%emt 0:00:00]} Nfxe4 {[%emt 0:00:00]} 17. Bxe7 {[%emt 0:00:00]} Qxe7 {[%emt 0:00:00]} 18. Rfe1 {[%emt 0:00:00]} Nxb3 {[%emt 0:00:00]} 19. cxb3 {[%emt 0:00:00]} Nc5 {[%emt 0:00:00]} 20. Qe3 {[%emt 0:00:00]} f6 {[%emt 0:00:00]} 21. Rac1 {[%emt 0:00:00]} Ne6 {[%emt 0:00:00]} 22. Nb6 {[%emt 0:00:00]} Rad8 {[%emt 0:00:00]} 23. Rxc6 {[%emt 0:00:00]} Rd3 {[%emt 0:00:00]} 24. Nd5 {[%emt 0:00:00]} Qd8 {[%emt 0:00:00]} 25. Qb6 {[%emt 0:00:00]} Qxb6 {[%emt 0:00:00]} 26. Rxb6 {[%emt 0:00:00]} Rxd5 {[%emt 0:00:00]} 27. Rxa6 {[%emt 0:00:00]} Re8 {[%emt 0:00:00]} 28. Rc1 {[%emt 0:00:00]} Re7 {[%emt 0:00:00]} 29. Rc8+ {[%emt 0:00:00]} Kf7 {[%emt 0:00:00]} 30. Rca8 {[%emt 0:00:00]} Rd3 {[%emt 0:00:00]} 31. Rxa5 {[%emt 0:00:00]} Rxb3 {[%emt 0:00:00]} 32. Rb8 {[%emt 0:00:00]} Rxb2 {[%emt 0:00:09]} 33. Rab5 {[%emt 0:00:00]} Ra7 {[%emt 0:00:09]} 34. a5 {[%emt 0:00:00]} Ra2 {[%emt 0:00:22]} 35. R8b7+ {[%emt 0:00:00]} Rxb7 {[%emt 0:00:01]} 36. Rxb7+ {[%emt 0:00:00]} Kg6 {[%emt 0:00:52]} 37. Rb6 {[%emt 0:00:00]} b3 {[%emt 0:00:41]} 38. Rxe6 {[%emt 0:00:47]} Ra1+ {[%emt 0:00:08]} 39. Kh2 {[%emt 0:00:07]} b2 {[%emt 0:00:03]} 40. Nd2 {[%emt 0:00:07]} Rd1 {[%emt 0:00:02]} 41. Rb6 {[%emt 0:01:07]} Rxd2 {[%emt 0:00:04]} 42. f3 {[%emt 0:00:36]} Kf5 {[%emt 0:00:27]} 43. a6 {[%emt 0:00:13]} Rd6 {[%emt 0:00:01]} 44. Rxb2 {[%emt 0:00:32]} Rxa6 {[%emt 0:00:02]} 45. Rb7 {[%emt 0:00:03]} Kg6 {[%emt 0:00:07]} 46. g4 {[%emt 0:00:04]} Ra3 {[%emt 0:00:05]} 47. Kg2 {[%emt 0:00:03]} Kh6 {[%emt 0:00:27]} 48. h4 {[%emt 0:00:42]} Ra6 {[%emt 0:00:35]} 49. Re7 {[%emt 0:00:09]} Kg6 {[%emt 0:00:15]} 50. Rd7 {[%emt 0:00:28]} h5 {[%emt 0:00:05]} 51. gxh5+ {[%emt 0:00:05]} Kh6 {[%emt 0:00:02]} 52. Rf7 {[%emt 0:00:19]} Ra4 {[%emt 0:00:30]} 53. Kg3 {[%emt 0:00:02]} Rf4 {[%emt 0:00:13]} 54. Rf8 {[%emt 0:00:16]} Kxh5 {[%emt 0:00:22]} 55. Rh8+ {[%emt 0:00:15]} Kg6 {[%emt 0:00:01]} 56. h5+ {[%emt 0:00:01]} Kf7 {[%emt 0:00:00]} 57. h6 {[%emt 0:00:04]} Rf5 {[%emt 0:00:27]} 58. hxg7 {[%emt 0:01:01]} Rg5+ {[%emt 0:00:01]} 59. Kf2 {[%emt 0:00:03]} Rxg7 {[%emt 0:00:02]} 60. Ra8 {[%emt 0:00:04]} Ke6 {[%emt 0:00:02]} 61. Ke3 {[%emt 0:00:02]} Kf5 {[%emt 0:00:03]} 62. Ra1 {[%emt 0:00:16]} Rb7 {[%emt 0:00:08]} 63. Ra5 {[%emt 0:00:12]} Rb3+ {[%emt 0:00:24]} 64. Kf2 {[%emt 0:00:02]} Rb2+ {[%emt 0:00:04]} 65. Ke3 {[%emt 0:00:03]} Rb6 {[%emt 0:00:33]} 66. Rc5 {[%emt 0:00:17]} Ke6 {[%emt 0:00:20]} 67. Ra5 {[%emt 0:00:08]} Rb3+ {[%emt 0:00:09]} 68. Kf2 {[%emt 0:00:03]} Kf5 {[%emt 0:00:24]} 69. Rc5 {[%emt 0:00:04]} Kg6 {[%emt 0:01:15]} 70. Ra5 {[%emt 0:00:07]} Rb4 {[%emt 0:00:15]} 71. Ke3 {[%emt 0:00:06]} Rf4 {[%emt 0:00:04]} 72. Rb5 {[%emt 0:00:13]} Kg5 {[%emt 0:00:06]} 73. Rb8 {[%emt 0:00:11]} Kf5 {[%emt 0:00:09]} 74. Rb5 {[%emt 0:00:06]} Ke6 {[%emt 0:00:02]} 75. Ra5 {[%emt 0:00:04]} Kd6 {[%emt 0:00:03]} 76. Rb5 {[%emt 0:00:04]} Kc6 {[%emt 0:00:01]} 77. Ra5 {[%emt 0:00:00]} Kb6 {[%emt 0:00:26]} 78. Rd5 {[%emt 0:00:02]} Kc6 {[%emt 0:01:35]} 79. Ra5 {[%emt 0:00:02]} Kd6 {[%emt 0:00:13]} 80. Rb5 {[%emt 0:00:02]} Ra4 {[%emt 0:00:07]} 81. Rb6+ {[%emt 0:00:03]} Ke7 {[%emt 0:00:03]} 82. Rb7+ {[%emt 0:00:03]} Ke6 {[%emt 0:00:01]} 83. Rb6+ {[%emt 0:00:02]} Kf5 {[%emt 0:00:02]} 84. Rb5 {[%emt 0:00:03]} Ra3+ {[%emt 0:00:03]} 85. Kf2 {[%emt 0:00:01]} Rd3 {[%emt 0:00:03]} 86. Ke2 {[%emt 0:00:12]} Ra3 {[%emt 0:00:34]} 87. Kf2 {[%emt 0:00:08]} 1/2-1/2

[Event "11th LCC Rapid 2019"]
[Site "London"]
[Date "2019.12.07"]
[Round "3.28"]
[White "Kirupakaran, Vishnu"]
[Black "Deaconu, Mihai-Ionut"]
[Result "1-0"]
[WhiteElo "1871"]
[BlackElo "1957"]
[PlyCount "155"]
[EventDate "2019.12.08"]
[EventType "swiss"]
[EventCountry "ENG"]
[TimeControl "15+10"]
[WhiteClock "0:14:02"]
[BlackClock "0:02:32"]

1. e4 {[%emt 0:00:00]} e5 {[%emt 0:00:00]} 2. Nf3 {[%emt 0:00:00]} Nc6 {[%emt 0:00:00]} 3. Bb5 {[%emt 0:00:00]} a6 {[%emt 0:00:00]} 4. Ba4 {[%emt 0:00:00]} Nf6 {[%emt 0:00:00]} 5. O-O {[%emt 0:00:00]} Be7 {[%emt 0:00:00]} 6. Re1 {[%emt 0:00:00]} b5 {[%emt 0:00:00]} 7. Bb3 {[%emt 0:00:00]} d6 {[%emt 0:00:00]} 8. c3 {[%emt 0:00:00]} O-O {[%emt 0:00:00]} 9. d4 {[%emt 0:00:00]} Bg4 {[%emt 0:00:00]} 10. d5 {[%emt 0:00:00]} Nb8 {[%emt 0:00:00]} 11. h3 {[%emt 0:00:00]} Bxf3 {[%emt 0:00:00]} 12. Qxf3 {[%emt 0:00:00]} Nbd7 {[%emt 0:00:00]} 13. Nd2 {[%emt 0:00:00]} Nc5 {[%emt 0:00:00]} 14. Bc2 {[%emt 0:00:00]} h6 {[%emt 0:00:00]} 15. Nf1 {[%emt 0:00:00]} Nfd7 {[%emt 0:00:00]} 16. Qg3 {[%emt 0:00:00]} Bg5 {[%emt 0:00:00]} 17. Ne3 {[%emt 0:00:00]} g6 {[%emt 0:00:00]} 18. b4 {[%emt 0:00:00]} Nb7 {[%emt 0:00:00]} 19. a4 {[%emt 0:00:00]} Nb6 {[%emt 0:00:00]} 20. axb5 {[%emt 0:00:00]} axb5 {[%emt 0:00:00]} 21. Rxa8 {[%emt 0:00:00]} Qxa8 {[%emt 0:00:00]} 22. h4 {[%emt 0:00:00]} Bf4 {[%emt 0:00:00]} 23. Qf3 {[%emt 0:00:00]} Qa2 {[%emt 0:00:00]} 24. Bd3 {[%emt 0:00:00]} Nc4 {[%emt 0:00:00]} 25. Bxc4 {[%emt 0:00:00]} bxc4 {[%emt 0:00:00]} 26. g3 {[%emt 0:00:00]} Bxe3 {[%emt 0:00:00]} 27. Qxe3 {[%emt 0:00:00]} f5 {[%emt 0:00:00]} 28. Qxh6 {[%emt 0:00:00]} fxe4 {[%emt 0:00:00]} 29. Qxg6+ {[%emt 0:00:00]} Kh8 {[%emt 0:00:00]} 30. Rf1 {[%emt 0:00:00]} Qe2 {[%emt 0:00:00]} 31. Bh6 {[%emt 0:00:00]} Rg8 {[%emt 0:00:00]} 32. Qf6+ {[%emt 0:00:00]} Kh7 {[%emt 0:00:00]} 33. Bg5 {[%emt 0:00:00]} Rg6 {[%emt 0:00:00]} 34. Qf7+ {[%emt 0:01:06]} Rg7 {[%emt 0:00:00]} 35. Qf5+ {[%emt 0:00:24]} Rg6 {[%emt 0:00:00]} 36. g4 {[%emt 0:00:30]} Qf3 {[%emt 0:00:00]} 37. Qxf3 {[%emt 0:00:59]} exf3 {[%emt 0:00:00]} 38. Ra1 {[%emt 0:00:07]} Rg8 {[%emt 0:00:00]} 39. Ra7 {[%emt 0:00:16]} Rb8 {[%emt 0:00:00]} 40. Kh2 {[%emt 0:00:17]} Kg6 {[%emt 0:00:00]} 41. Kg3 {[%emt 0:00:12]} Nd8 {[%emt 0:00:00]} 42. Bxd8 {[%emt 0:00:56]} Rxd8 {[%emt 0:00:00]} 43. Rxc7 {[%emt 0:00:02]} e4 {[%emt 0:00:00]} 44. Re7 {[%emt 0:00:22]} Ra8 {[%emt 0:00:00]} 45. Rxe4 {[%emt 0:00:03]} Ra3 {[%emt 0:00:00]} 46. Rxc4 {[%emt 0:00:03]} Kf6 {[%emt 0:00:00]} 47. Kf4 {[%emt 0:00:28]} Rb3 {[%emt 0:00:00]} 48. g5+ {[%emt 0:00:14]} Kg6 {[%emt 0:00:00]} 49. Kxf3 {[%emt 0:00:14]} Kf5 {[%emt 0:00:00]} 50. Ke3 {[%emt 0:00:57]} Ke5 {[%emt 0:00:00]} 51. f4+ {[%emt 0:00:02]} Kxd5 {[%emt 0:00:00]} 52. Rd4+ {[%emt 0:00:01]} Ke6 {[%emt 0:00:00]} 53. Kd3 {[%emt 0:00:04]} Rb1 {[%emt 0:00:00]} 54. h5 {[%emt 0:00:07]} Rd1+ {[%emt 0:00:00]} 55. Kc4 {[%emt 0:00:08]} d5+ {[%emt 0:00:00]} 56. Kc5 {[%emt 0:00:01]} Rc1 {[%emt 0:00:00]} 57. Rd3 {[%emt 0:00:18]} Rf1 {[%emt 0:00:00]} 58. Rxd5 {[%emt 0:00:27]} Rxf4 {[%emt 0:00:00]} 59. Rd6+ {[%emt 0:00:03]} Ke7 {[%emt 0:00:00]} 60. Rg6 {[%emt 0:00:11]} Rf5+ {[%emt 0:00:00]} 61. Kb6 {[%emt 0:00:21]} Rf3 {[%emt 0:00:00]} 62. c4 {[%emt 0:00:03]} Rf4 {[%emt 0:00:00]} 63. Kb5 {[%emt 0:00:03]} Rf5+ {[%emt 0:00:00]} 64. c5 {[%emt 0:00:02]} Kd7 {[%emt 0:00:00]} 65. Kb6 {[%emt 0:00:10]} Rf4 {[%emt 0:00:00]} 66. b5 {[%emt 0:00:02]} Rh4 {[%emt 0:00:00]} 67. c6+ {[%emt 0:00:06]} Ke7 {[%emt 0:00:00]} 68. h6 {[%emt 0:00:07]} Kf7 {[%emt 0:00:00]} 69. Rf6+ {[%emt 0:00:02]} Ke7 {[%emt 0:00:00]} 70. Kb7 {[%emt 0:00:02]} Rb4 {[%emt 0:00:00]} 71. b6 {[%emt 0:00:04]} Rb1 {[%emt 0:00:00]} 72. c7 {[%emt 0:00:23]} Rd1 {[%emt 0:00:00]} 73. c8=Q {[%emt 0:00:29]} Rd7+ {[%emt 0:00:00]} 74. Qxd7+ Kxd7 {[%emt 0:00:00]} 75. h7 {[%emt 0:00:06]} Ke7 {[%emt 0:00:00]} 76. h8=Q {[%emt 0:00:06]} Kd7 {[%emt 0:00:00]} 77. Qg7+ {[%emt 0:00:03]} Ke8 {[%emt 0:00:00]} 78. Rf8# {[%emt 0:00:02]} 1-0

[Event "11th LCC Rapid 2019"]
[Site "London"]
[Date "2019.12.07"]
[Round "3.29"]
[White "Titorenko, Kostyantyn"]
[Black "Trivedi, Aarnavh"]
[Result "0-1"]
[WhiteElo "1772"]
[BlackElo "1761"]
[PlyCount "120"]
[EventDate "2019.12.08"]
[EventType "swiss"]
[EventCountry "ENG"]
[TimeControl "15+10"]
[WhiteClock "0:04:45"]
[BlackClock "0:02:21"]

1. e4 {[%emt 0:00:00]} c6 {[%emt 0:00:00]} 2. Nc3 {[%emt 0:00:00]} d5 {[%emt 0:00:00]} 3. Qf3 {[%emt 0:00:00]} d4 {[%emt 0:00:00]} 4. Nce2 {[%emt 0:00:14]} e5 {[%emt 0:00:00]} 5. d3 {[%emt 0:00:00]} Nf6 {[%emt 0:00:00]} 6. h3 {[%emt 0:00:00]} h6 {[%emt 0:00:00]} 7. Qg3 {[%emt 0:00:00]} Qc7 {[%emt 0:00:00]} 8. Nxd4 {[%emt 0:00:00]} Bd6 {[%emt 0:00:00]} 9. Qxg7 {[%emt 0:00:00]} exd4 {[%emt 0:00:00]} 10. Qxh8+ {[%emt 0:00:00]} Ke7 {[%emt 0:00:00]} 11. Qxh6 {[%emt 0:00:00]} Bb4+ {[%emt 0:00:00]} 12. Bd2 {[%emt 0:00:00]} Bd6 {[%emt 0:00:00]} 13. Nf3 {[%emt 0:00:00]} Be6 {[%emt 0:00:00]} 14. Nxd4 {[%emt 0:00:00]} Qb6 {[%emt 0:00:00]} 15. Bc3 {[%emt 0:00:00]} Nbd7 {[%emt 0:00:00]} 16. Nxe6 {[%emt 0:00:00]} Kxe6 {[%emt 0:00:00]} 17. Qe3 {[%emt 0:00:00]} Qc7 {[%emt 0:00:00]} 18. O-O-O {[%emt 0:00:00]} Bf4 {[%emt 0:00:00]} 19. Be2 {[%emt 0:00:00]} Bxe3+ {[%emt 0:00:00]} 20. fxe3 {[%emt 0:00:00]} b5 {[%emt 0:00:00]} 21. g4 {[%emt 0:00:00]} Qb6 {[%emt 0:00:00]} 22. Bd2 {[%emt 0:00:00]} Ne5 {[%emt 0:00:00]} 23. g5 {[%emt 0:00:00]} Nfd7 {[%emt 0:00:00]} 24. d4 {[%emt 0:00:00]} Nc4 {[%emt 0:00:00]} 25. Bg4+ {[%emt 0:00:00]} Ke7 {[%emt 0:00:00]} 26. Rhf1 {[%emt 0:00:00]} Nxd2 {[%emt 0:00:00]} 27. Rxd2 {[%emt 0:00:00]} Rf8 {[%emt 0:00:00]} 28. Rdf2 {[%emt 0:00:00]} Qc7 {[%emt 0:00:00]} 29. e5 {[%emt 0:00:00]} c5 {[%emt 0:00:08]} 30. c3 {[%emt 0:00:00]} cxd4 {[%emt 0:00:10]} 31. exd4 {[%emt 0:00:00]} b4 {[%emt 0:00:00]} 32. Kc2 {[%emt 0:00:15]} bxc3 {[%emt 0:00:17]} 33. bxc3 {[%emt 0:00:02]} Nb6 {[%emt 0:00:51]} 34. g6 {[%emt 0:00:41]} Ke8 {[%emt 0:00:24]} 35. g7 {[%emt 0:01:00]} Rg8 {[%emt 0:00:10]} 36. Rxf7 {[%emt 0:00:11]} Qxf7 {[%emt 0:00:02]} 37. Rxf7 {[%emt 0:00:16]} Kxf7 {[%emt 0:00:02]} 38. Kd3 {[%emt 0:00:15]} Rxg7 {[%emt 0:00:02]} 39. c4 {[%emt 0:00:07]} Rg5 {[%emt 0:00:28]} 40. c5 {[%emt 0:00:39]} Nd5 {[%emt 0:00:34]} 41. a3 {[%emt 0:00:32]} Ke7 {[%emt 0:00:14]} 42. Ke4 {[%emt 0:00:13]} Nc3+ {[%emt 0:00:02]} 43. Kf4 {[%emt 0:00:01]} Rg8 {[%emt 0:00:02]} 44. e6 {[%emt 0:00:25]} Rd8 {[%emt 0:00:10]} 45. Ke5 {[%emt 0:00:07]} Rd5+ {[%emt 0:00:09]} 46. Kf4 {[%emt 0:00:07]} Rxd4+ {[%emt 0:00:03]} 47. Ke3 {[%emt 0:00:01]} Rc4 {[%emt 0:00:08]} 48. Kd3 {[%emt 0:00:18]} Rxc5 {[%emt 0:00:00]} 49. Kc2 {[%emt 0:00:22]} Ne4+ {[%emt 0:00:10]} 50. Kb3 {[%emt 0:00:02]} Nf2 {[%emt 0:00:01]} 51. Kb4 {[%emt 0:00:05]} Re5 {[%emt 0:00:11]} 52. Bf3 {[%emt 0:00:29]} Nxh3 {[%emt 0:00:08]} 53. a4 {[%emt 0:00:06]} Nf4 {[%emt 0:00:13]} 54. Bc6 {[%emt 0:00:23]} Kxe6 {[%emt 0:00:05]} 55. Bb5 {[%emt 0:00:01]} Kd6 {[%emt 0:00:17]} 56. Ka5 {[%emt 0:00:08]} Kc7 {[%emt 0:00:08]} 57. Ka6 {[%emt 0:00:02]} Kb8 {[%emt 0:00:05]} 58. Bf1 {[%emt 0:00:36]} Ne6 {[%emt 0:00:06]} 59. Bb5 {[%emt 0:00:15]} Nc7+ {[%emt 0:00:08]} 60. Ka5 {[%emt 0:00:01]} a6 {[%emt 0:00:02]} 0-1

[Event "11th LCC Rapid 2019"]
[Site "London"]
[Date "2019.12.07"]
[Round "4.1"]
[White "Hebden, Mark L"]
[Black "Harvey, Marcus R"]
[Result "1/2-1/2"]
[WhiteElo "2433"]
[BlackElo "2412"]
[PlyCount "127"]
[EventDate "2019.12.08"]
[EventType "swiss"]
[EventCountry "ENG"]
[TimeControl "15+10"]
[WhiteClock "0:02:45"]
[BlackClock "0:01:06"]

1. d4 {[%emt 0:00:00]} Nf6 {[%emt 0:00:00]} 2. Nf3 {[%emt 0:00:00]} b6 {[%emt 0:00:00]} 3. Bg5 {[%emt 0:00:00]} Bb7 {[%emt 0:00:00]} 4. Nbd2 {[%emt 0:00:00]} g6 {[%emt 0:00:00]} 5. Bxf6 {[%emt 0:00:00]} exf6 {[%emt 0:00:00]} 6. e4 {[%emt 0:00:00]} Bh6 {[%emt 0:00:00]} 7. Bd3 {[%emt 0:00:00]} O-O {[%emt 0:00:00]} 8. O-O {[%emt 0:00:00]} d5 {[%emt 0:00:00]} 9. exd5 {[%emt 0:00:00]} Bxd5 {[%emt 0:00:00]} 10. Be4 {[%emt 0:00:00]} Bxe4 {[%emt 0:00:00]} 11. Nxe4 {[%emt 0:00:00]} f5 {[%emt 0:00:00]} 12. Ned2 {[%emt 0:00:00]} Qd5 {[%emt 0:00:00]} 13. c3 {[%emt 0:00:00]} Nd7 {[%emt 0:00:00]} 14. Qb3 {[%emt 0:00:00]} Nf6 {[%emt 0:00:00]} 15. Qxd5 {[%emt 0:00:00]} Nxd5 {[%emt 0:00:00]} 16. Nc4 {[%emt 0:00:00]} Rfe8 {[%emt 0:00:00]} 17. Rfe1 {[%emt 0:00:00]} f6 {[%emt 0:00:00]} 18. g3 {[%emt 0:00:00]} Kf7 {[%emt 0:00:00]} 19. Rxe8 {[%emt 0:00:00]} Rxe8 {[%emt 0:00:00]} 20. Kf1 {[%emt 0:00:00]} Re4 {[%emt 0:00:00]} 21. Ncd2 {[%emt 0:00:00]} Re7 {[%emt 0:00:00]} 22. Re1 {[%emt 0:00:00]} b5 {[%emt 0:00:00]} 23. Rxe7+ {[%emt 0:00:00]} Kxe7 {[%emt 0:00:00]} 24. Ke2 {[%emt 0:00:00]} Kd6 {[%emt 0:00:00]} 25. Kd3 {[%emt 0:00:00]} g5 {[%emt 0:00:00]} 26. Ng1 {[%emt 0:00:00]} g4 {[%emt 0:00:00]} 27. f4 {[%emt 0:00:00]} gxf3 {[%emt 0:00:00]} 28. Ndxf3 {[%emt 0:00:00]} Bc1 {[%emt 0:00:00]} 29. Kc2 {[%emt 0:00:00]} Be3 {[%emt 0:00:00]} 30. Ne2 {[%emt 0:00:00]} Bf2 {[%emt 0:00:00]} 31. Kd3 {[%emt 0:00:00]} Be3 {[%emt 0:00:00]} 32. Nh4 {[%emt 0:00:00]} Ke6 {[%emt 0:00:00]} 33. Ng2 {[%emt 0:00:00]} Bh6 {[%emt 0:00:00]} 34. Nef4+ {[%emt 0:00:00]} Kd6 {[%emt 0:00:00]} 35. Nxd5 {[%emt 0:00:00]} Kxd5 {[%emt 0:00:00]} 36. Nf4+ {[%emt 0:00:00]} Kd6 {[%emt 0:00:00]} 37. c4 {[%emt 0:00:00]} bxc4+ {[%emt 0:00:00]} 38. Kxc4 {[%emt 0:00:00]} Kc6 {[%emt 0:00:00]} 39. Nd5 {[%emt 0:00:00]} Bc1 {[%emt 0:00:00]} 40. b4 {[%emt 0:00:00]} Kd6 {[%emt 0:00:00]} 41. b5 {[%emt 0:00:00]} h6 {[%emt 0:00:00]} 42. Nxf6 {[%emt 0:00:00]} f4 {[%emt 0:00:00]} 43. g4 {[%emt 0:00:38]} f3 {[%emt 0:00:00]} 44. Kd3 {[%emt 0:00:46]} Ke6 {[%emt 0:00:00]} 45. Ne4 {[%emt 0:00:21]} Kd5 {[%emt 0:00:00]} 46. h4 {[%emt 0:00:59]} Bb2 {[%emt 0:00:00]} 47. Nf6+ {[%emt 0:00:49]} Ke6 {[%emt 0:00:00]} 48. Nh5 {[%emt 0:00:45]} Kd5 {[%emt 0:00:00]} 49. Ng3 {[%emt 0:01:28]} Bxd4 {[%emt 0:00:00]} 50. Nf5 {[%emt 0:00:02]} Bf6 {[%emt 0:02:05]} 51. Ke3 {[%emt 0:00:05]} Kc5 {[%emt 0:00:05]} 52. Kxf3 {[%emt 0:00:10]} Kxb5 {[%emt 0:00:01]} 53. Kg3 {[%emt 0:00:20]} Be5+ {[%emt 0:00:15]} 54. Kf3 {[%emt 0:00:12]} Bf6 {[%emt 0:00:01]} 55. h5 {[%emt 0:00:36]} Bg5 {[%emt 0:00:07]} 56. Ke4 {[%emt 0:00:02]} Kb4 {[%emt 0:01:00]} 57. Kd3 {[%emt 0:00:15]} Ka3 {[%emt 0:00:38]} 58. Nd4 {[%emt 0:00:22]} Kxa2 {[%emt 0:00:01]} 59. Kc4 {[%emt 0:00:23]} Kb2 {[%emt 0:02:10]} 60. Ne6 {[%emt 0:00:16]} Bd2 {[%emt 0:00:01]} 61. Nxc7 {[%emt 0:00:04]} a5 {[%emt 0:00:00]} 62. Kb5 {[%emt 0:00:12]} Kc3 {[%emt 0:01:30]} 63. Ne6 {[%emt 0:00:16]} Kd3 {[%emt 0:00:06]} 64. g5 {[%emt 0:00:48]} 1/2-1/2